[Event "Titled Tuesday Blitz May 9 Early 2023"]
[White "Rios Escobar, Adan"]
[Black "Thorhallsson, Simon"]
[WhiteFideId "3403645"]
[BlackFideId "2310090"]
[WhiteElo "2427"]
[BlackElo "2108"]
[Result "1-0"]
[Round "11"]
[TimeControl "180+2"]
[Date "2023.05.09"]
[WhiteClock "0:00:08"]
[BlackClock "0:00:49"]

1. d4 {[%clk 0:02:42]}  Nf6 {[%clk 0:02:59]} 2. g3 {[%clk 0:02:42]}  g6 {[%clk 0:02:59]} 3. Bg2 {[%clk 0:02:42]}  Bg7 {[%clk 0:03:00]} 4. e4 {[%clk 0:02:42]}  O-O {[%clk 0:03:00]} 5. Ne2 {[%clk 0:02:43]}  d6 {[%clk 0:02:59]} 6. O-O {[%clk 0:02:43]}  e5 {[%clk 0:02:49]} 7. Nbc3 {[%clk 0:02:42]}  Nc6 {[%clk 0:02:44]} 8. dxe5 {[%clk 0:02:42]}  dxe5 {[%clk 0:02:43]} 9. Bg5 {[%clk 0:02:42]}  h6 {[%clk 0:02:40]} 10. Qxd8 {[%clk 0:02:41]}  Rxd8 {[%clk 0:02:40]} 11. Bxf6 {[%clk 0:02:42]}  Bxf6 {[%clk 0:02:38]} 12. Nd5 {[%clk 0:02:43]}  Bg7 {[%clk 0:02:34]} 13. Nxc7 {[%clk 0:02:44]}  Rd2 {[%clk 0:02:33]} 14. Nxa8 {[%clk 0:02:37]}  Rxe2 {[%clk 0:02:31]} 15. Rac1 {[%clk 0:02:28]}  h5 {[%clk 0:02:25]} 16. Bf3 {[%clk 0:02:24]}  Rd2 {[%clk 0:02:25]} 17. Rfd1 {[%clk 0:02:17]}  Nd4 {[%clk 0:02:25]} 18. Bg2 {[%clk 0:01:55]}  Bh6 {[%clk 0:02:17]} 19. f4 {[%clk 0:01:50]}  Rxd1+ {[%clk 0:02:06]} 20. Rxd1 {[%clk 0:01:49]}  Bg4 {[%clk 0:02:07]} 21. Rd2 {[%clk 0:01:45]}  Kg7 {[%clk 0:01:59]} 22. Kf2 {[%clk 0:01:38]}  Ne6 {[%clk 0:01:55]} 23. Rd7 {[%clk 0:01:26]}  exf4 {[%clk 0:01:48]} 24. Rxb7 {[%clk 0:01:26]}  fxg3+ {[%clk 0:01:47]} 25. hxg3 {[%clk 0:01:24]}  Bg5 {[%clk 0:01:38]} 26. Nc7 {[%clk 0:01:17]}  Nc5 {[%clk 0:01:35]} 27. Rxa7 {[%clk 0:01:13]}  Bd8 {[%clk 0:01:28]} 28. b4 {[%clk 0:00:54]}  Nd7 {[%clk 0:01:25]} 29. c4 {[%clk 0:00:45]}  Ne5 {[%clk 0:01:21]} 30. Bf1 {[%clk 0:00:37]}  Nc6 {[%clk 0:01:12]} 31. Rb7 {[%clk 0:00:15]}  Bc8 {[%clk 0:01:10]} 32. Rb6 {[%clk 0:00:10]}  Bd7 {[%clk 0:01:10]} 33. Nd5 {[%clk 0:00:06]}  Bxb6+ {[%clk 0:01:07]} 34. Nxb6 {[%clk 0:00:07]}  Nxb4 {[%clk 0:00:58]} 35. Nxd7 {[%clk 0:00:07]}  Nxa2 {[%clk 0:00:58]} 36. c5 {[%clk 0:00:07]}  Nb4 {[%clk 0:00:58]} 37. Bb5 {[%clk 0:00:06]}  f6 {[%clk 0:00:55]} 38. c6 {[%clk 0:00:06]}  Nxc6 {[%clk 0:00:55]} 39. Bxc6 {[%clk 0:00:06]}  Kf7 {[%clk 0:00:55]} 40. Nc5 {[%clk 0:00:06]}  Ke7 {[%clk 0:00:53]} 41. Nd3 {[%clk 0:00:06]}  Kd6 {[%clk 0:00:52]} 42. Be8 {[%clk 0:00:06]}  f5 {[%clk 0:00:49]} 43. Bxg6 {[%clk 0:00:06]}  fxe4 {[%clk 0:00:48]} 44. Bxe4 {[%clk 0:00:06]}  Ke6 {[%clk 0:00:48]} 45. Kf3 {[%clk 0:00:07]}  Kf6 {[%clk 0:00:49]} 46. Kf4 {[%clk 0:00:08]}  Kg7 {[%clk 0:00:48]} 47. Kg5 {[%clk 0:00:08]}  h4 {[%clk 0:00:49]} 48. Kxh4 {[%clk 0:00:08]}  Kh8 {[%clk 0:00:50]} 49. Kg5 {[%clk 0:00:08]}  Kg7 {[%clk 0:00:50]} 50. Ne5 {[%clk 0:00:08]}  Kh8 {[%clk 0:00:50]} 51. Kg6 {[%clk 0:00:06]}  Kg8 {[%clk 0:00:51]} 52. Nf7 {[%clk 0:00:07]}  Kf8 {[%clk 0:00:51]} 53. Kf6 {[%clk 0:00:07]}  Kg8 {[%clk 0:00:51]} 54. Bf5 {[%clk 0:00:08]}  Kf8 {[%clk 0:00:49]} 55. Bh7 {[%clk 0:00:08]} 1-0


[Site "https://www.chess.com"]

[Event "Titled Tuesday Blitz May 9 Early 2023"]
[White "Mackster23"]
[Black "Goffredo_Fofi"]
[WhiteElo "2440"]
[BlackElo "2537"]
[Result "1-0"]
[Round "11"]
[TimeControl "180+2"]
[Date "2023.05.09"]
[WhiteClock "0:00:04"]
[BlackClock "0:00:09"]

1. e4 {[%clk 0:02:58]}  Nf6 {[%clk 0:03:00]} 2. e5 {[%clk 0:02:58]}  Nd5 {[%clk 0:03:00]} 3. d4 {[%clk 0:02:58]}  d6 {[%clk 0:03:00]} 4. c4 {[%clk 0:02:59]}  Nb6 {[%clk 0:03:01]} 5. exd6 {[%clk 0:03:00]}  cxd6 {[%clk 0:03:01]} 6. Nc3 {[%clk 0:03:00]}  g6 {[%clk 0:03:02]} 7. Bd3 {[%clk 0:03:00]}  Bg7 {[%clk 0:03:01]} 8. Nge2 {[%clk 0:03:01]}  O-O {[%clk 0:03:00]} 9. Be3 {[%clk 0:02:59]}  Nc6 {[%clk 0:03:00]} 10. O-O {[%clk 0:02:52]}  e5 {[%clk 0:02:54]} 11. d5 {[%clk 0:02:51]}  Nb4 {[%clk 0:02:54]} 12. b3 {[%clk 0:02:22]}  Nxd3 {[%clk 0:02:54]} 13. Qxd3 {[%clk 0:02:23]}  f5 {[%clk 0:02:53]} 14. f4 {[%clk 0:02:23]}  e4 {[%clk 0:02:44]} 15. Qd2 {[%clk 0:02:16]}  Nd7 {[%clk 0:02:43]} 16. Rac1 {[%clk 0:02:02]}  Nc5 {[%clk 0:02:38]} 17. Rc2 {[%clk 0:01:58]}  Bd7 {[%clk 0:02:34]} 18. Nd4 {[%clk 0:01:50]}  a6 {[%clk 0:02:28]} 19. Rb1 {[%clk 0:01:41]}  g5 {[%clk 0:01:50]} 20. Rf1 {[%clk 0:01:26]}  g4 {[%clk 0:01:44]} 21. g3 {[%clk 0:01:13]}  h5 {[%clk 0:01:43]} 22. Rb1 {[%clk 0:00:47]}  h4 {[%clk 0:01:40]} 23. Nd1 {[%clk 0:00:35]}  Rf6 {[%clk 0:01:28]} 24. Nf2 {[%clk 0:00:33]}  Rh6 {[%clk 0:01:28]} 25. b4 {[%clk 0:00:30]}  Na4 {[%clk 0:01:22]} 26. c5 {[%clk 0:00:30]}  hxg3 {[%clk 0:01:20]} 27. hxg3 {[%clk 0:00:29]}  Bxd4 {[%clk 0:01:00]} 28. Bxd4 {[%clk 0:00:23]}  Bb5 {[%clk 0:01:00]} 29. Ba1 {[%clk 0:00:18]}  Kf7 {[%clk 0:00:43]} 30. Qd4 {[%clk 0:00:17]}  Rh7 {[%clk 0:00:43]} 31. Nd1 {[%clk 0:00:13]}  Bd3 {[%clk 0:00:41]} 32. Rbc1 {[%clk 0:00:12]}  Qe7 {[%clk 0:00:24]} 33. Ne3 {[%clk 0:00:10]}  Rah8 {[%clk 0:00:21]} 34. Qxh8 {[%clk 0:00:06]}  Rxh8 {[%clk 0:00:22]} 35. Nxf5 {[%clk 0:00:04]}  Qd8 {[%clk 0:00:14]} 36. Nxd6+ {[%clk 0:00:04]}  Kg8 {[%clk 0:00:14]} 37. Bxh8 {[%clk 0:00:03]}  Bxc2 {[%clk 0:00:15]} 38. Rxc2 {[%clk 0:00:04]}  Kxh8 {[%clk 0:00:09]} 39. Nf7+ {[%clk 0:00:04]} 1-0


[Site "https://www.chess.com"]

[Event "Titled Tuesday Blitz May 9 Early 2023"]
[White "Jovic, Stanoje"]
[Black "Mike24147"]
[WhiteFideId "905020"]
[WhiteElo "2236"]
[BlackElo "2334"]
[Result "1-0"]
[Round "11"]
[TimeControl "180+2"]
[Date "2023.05.09"]
[WhiteClock "0:00:02"]
[BlackClock "0:00:00"]

1. c4 {[%clk 0:03:00]}  c6 {[%clk 0:02:58]} 2. e4 {[%clk 0:03:00]}  d5 {[%clk 0:02:58]} 3. exd5 {[%clk 0:03:01]}  cxd5 {[%clk 0:02:58]} 4. cxd5 {[%clk 0:03:01]}  Nf6 {[%clk 0:02:58]} 5. Qa4+ {[%clk 0:03:01]}  Nbd7 {[%clk 0:02:58]} 6. Bc4 {[%clk 0:03:00]}  g6 {[%clk 0:02:56]} 7. d3 {[%clk 0:03:00]}  Bg7 {[%clk 0:02:56]} 8. Nc3 {[%clk 0:03:01]}  O-O {[%clk 0:02:57]} 9. Nf3 {[%clk 0:03:01]}  Nb6 {[%clk 0:02:56]} 10. Qb3 {[%clk 0:03:01]}  Nfd7 {[%clk 0:02:38]} 11. Be3 {[%clk 0:02:57]}  Nxc4 {[%clk 0:02:17]} 12. dxc4 {[%clk 0:02:56]}  b6 {[%clk 0:02:18]} 13. O-O {[%clk 0:02:52]}  Ba6 {[%clk 0:02:18]} 14. Nd4 {[%clk 0:02:40]}  Nc5 {[%clk 0:02:13]} 15. Qb4 {[%clk 0:02:28]}  Nd3 {[%clk 0:02:10]} 16. Qa4 {[%clk 0:02:14]}  Qc8 {[%clk 0:02:10]} 17. Nc6 {[%clk 0:02:08]}  Re8 {[%clk 0:02:05]} 18. Rab1 {[%clk 0:02:02]}  Nxb2 {[%clk 0:02:04]} 19. Rxb2 {[%clk 0:01:59]}  Bxc3 {[%clk 0:02:05]} 20. Re2 {[%clk 0:01:53]}  e6 {[%clk 0:01:58]} 21. d6 {[%clk 0:01:33]}  Qd7 {[%clk 0:01:02]} 22. Qxa6 {[%clk 0:01:11]}  Qxc6 {[%clk 0:01:02]} 23. Rd1 {[%clk 0:01:09]}  Red8 {[%clk 0:00:59]} 24. c5 {[%clk 0:01:02]}  Rac8 {[%clk 0:00:42]} 25. Rc2 {[%clk 0:00:59]}  Be5 {[%clk 0:00:22]} 26. Qxa7 {[%clk 0:00:53]}  Bxd6 {[%clk 0:00:21]} 27. Rcd2 {[%clk 0:00:30]}  bxc5 {[%clk 0:00:17]} 28. Qa3 {[%clk 0:00:27]}  Be7 {[%clk 0:00:17]} 29. Qc3 {[%clk 0:00:24]}  Rxd2 {[%clk 0:00:16]} 30. Rxd2 {[%clk 0:00:24]}  c4 {[%clk 0:00:17]} 31. Bd4 {[%clk 0:00:18]}  Qb5 {[%clk 0:00:11]} 32. g3 {[%clk 0:00:16]}  Bb4 {[%clk 0:00:12]} 33. Qc2 {[%clk 0:00:13]}  Bxd2 {[%clk 0:00:11]} 34. Qxd2 {[%clk 0:00:14]}  Qb1+ {[%clk 0:00:11]} 35. Kg2 {[%clk 0:00:13]}  Qd3 {[%clk 0:00:12]} 36. Qf4 {[%clk 0:00:12]}  Rd8 {[%clk 0:00:07]} 37. Bf6 {[%clk 0:00:09]}  Qd5+ {[%clk 0:00:05]} 38. Kg1 {[%clk 0:00:05]}  Rc8 {[%clk 0:00:03]} 39. Qh6 {[%clk 0:00:03]}  Qd1+ {[%clk 0:00:02]} 40. Kg2 {[%clk 0:00:03]}  Qd5+ {[%clk 0:00:00]} 41. f3 {[%clk 0:00:02]} 1-0


[Site "https://www.chess.com"]

[Event "Titled Tuesday Blitz May 9 Early 2023"]
[White "babbilator"]
[Black "Rom, Jasper"]
[BlackFideId "2023733"]
[WhiteElo "2305"]
[BlackElo "2233"]
[Result "1-0"]
[Round "11"]
[TimeControl "180+2"]
[Date "2023.05.09"]
[WhiteClock "0:00:07"]
[BlackClock "0:00:00"]

1. e4 {[%clk 0:03:00]}  e6 {[%clk 0:02:59]} 2. Nc3 {[%clk 0:03:00]}  d5 {[%clk 0:02:59]} 3. d4 {[%clk 0:03:00]}  Nf6 {[%clk 0:02:58]} 4. e5 {[%clk 0:02:59]}  Nfd7 {[%clk 0:02:58]} 5. f4 {[%clk 0:02:58]}  c5 {[%clk 0:02:59]} 6. Nf3 {[%clk 0:02:59]}  Nc6 {[%clk 0:02:59]} 7. Be3 {[%clk 0:02:59]}  Be7 {[%clk 0:03:00]} 8. Qd2 {[%clk 0:02:59]}  O-O {[%clk 0:03:00]} 9. Be2 {[%clk 0:02:40]}  a6 {[%clk 0:02:58]} 10. O-O {[%clk 0:02:38]}  b5 {[%clk 0:02:55]} 11. dxc5 {[%clk 0:02:38]}  Nxc5 {[%clk 0:02:54]} 12. Nd4 {[%clk 0:02:15]}  Bb7 {[%clk 0:02:19]} 13. Bf3 {[%clk 0:02:02]}  Na5 {[%clk 0:02:02]} 14. b3 {[%clk 0:01:57]}  Qc7 {[%clk 0:02:01]} 15. Nce2 {[%clk 0:01:50]}  Nc6 {[%clk 0:01:54]} 16. c3 {[%clk 0:01:45]}  Rac8 {[%clk 0:01:52]} 17. Nxc6 {[%clk 0:01:31]}  Bxc6 {[%clk 0:01:49]} 18. Nd4 {[%clk 0:01:32]}  Bb7 {[%clk 0:01:49]} 19. Rac1 {[%clk 0:01:25]}  Rfd8 {[%clk 0:01:45]} 20. Rfd1 {[%clk 0:01:22]}  Ne4 {[%clk 0:01:33]} 21. Bxe4 {[%clk 0:01:21]}  dxe4 {[%clk 0:01:33]} 22. Qf2 {[%clk 0:01:13]}  Ba3 {[%clk 0:01:29]} 23. Rc2 {[%clk 0:01:12]}  Bd5 {[%clk 0:01:21]} 24. h4 {[%clk 0:00:50]}  h5 {[%clk 0:01:12]} 25. Qg3 {[%clk 0:00:40]}  g6 {[%clk 0:01:05]} 26. f5 {[%clk 0:00:38]}  exf5 {[%clk 0:01:03]} 27. Nxf5 {[%clk 0:00:37]}  Be6 {[%clk 0:00:48]} 28. Nd6 {[%clk 0:00:34]}  Bg4 {[%clk 0:00:35]} 29. Rdd2 {[%clk 0:00:28]}  Bxd6 {[%clk 0:00:29]} 30. exd6 {[%clk 0:00:26]}  Qd7 {[%clk 0:00:29]} 31. Bf4 {[%clk 0:00:14]}  Rc6 {[%clk 0:00:30]} 32. Rf2 {[%clk 0:00:14]}  Rdc8 {[%clk 0:00:29]} 33. Be5 {[%clk 0:00:13]}  Qe6 {[%clk 0:00:26]} 34. Rf6 {[%clk 0:00:12]}  Qd5 {[%clk 0:00:25]} 35. Qf4 {[%clk 0:00:12]}  Qd1+ {[%clk 0:00:22]} 36. Kh2 {[%clk 0:00:11]}  Qd5 {[%clk 0:00:17]} 37. Rf2 {[%clk 0:00:08]}  Rxc3 {[%clk 0:00:00]} 38. Rxf7 {[%clk 0:00:07]} 1-0


[Site "https://www.chess.com"]

[Event "Titled Tuesday Blitz May 9 Early 2023"]
[White "Manukian, Artak"]
[Black "Kim, Sergey"]
[WhiteFideId "13301373"]
[BlackFideId "13700570"]
[WhiteElo "2130"]
[BlackElo "2580"]
[Result "0-1"]
[Round "11"]
[TimeControl "180+2"]
[Date "2023.05.09"]
[WhiteClock "0:00:00"]
[BlackClock "0:00:24"]

1. e4 {[%clk 0:03:00]}  e5 {[%clk 0:02:59]} 2. Nf3 {[%clk 0:03:00]}  Nc6 {[%clk 0:02:59]} 3. d4 {[%clk 0:03:00]}  exd4 {[%clk 0:02:59]} 4. Nxd4 {[%clk 0:03:01]}  Bc5 {[%clk 0:02:59]} 5. Nxc6 {[%clk 0:03:01]}  Qf6 {[%clk 0:02:58]} 6. Qf3 {[%clk 0:02:59]}  dxc6 {[%clk 0:02:58]} 7. Bc4 {[%clk 0:02:49]}  Qe7 {[%clk 0:02:55]} 8. O-O {[%clk 0:02:48]}  Be6 {[%clk 0:02:51]} 9. Bxe6 {[%clk 0:02:45]}  Qxe6 {[%clk 0:02:51]} 10. Nd2 {[%clk 0:02:38]}  Nf6 {[%clk 0:02:49]} 11. Nb3 {[%clk 0:02:33]}  Bb6 {[%clk 0:02:46]} 12. Bg5 {[%clk 0:02:09]}  Nd7 {[%clk 0:02:30]} 13. Be3 {[%clk 0:01:57]}  O-O {[%clk 0:02:25]} 14. Bxb6 {[%clk 0:01:46]}  axb6 {[%clk 0:02:24]} 15. a3 {[%clk 0:01:46]}  Rfe8 {[%clk 0:02:17]} 16. Rfe1 {[%clk 0:01:45]}  Ne5 {[%clk 0:02:14]} 17. Qg3 {[%clk 0:01:45]}  Nc4 {[%clk 0:02:11]} 18. Qxc7 {[%clk 0:01:36]}  Re7 {[%clk 0:02:07]} 19. Qf4 {[%clk 0:01:29]}  Nxb2 {[%clk 0:02:03]} 20. Nd4 {[%clk 0:01:27]}  Qe5 {[%clk 0:01:59]} 21. Qxe5 {[%clk 0:01:20]}  Rxe5 {[%clk 0:01:58]} 22. f4 {[%clk 0:01:20]}  Rea5 {[%clk 0:01:53]} 23. e5 {[%clk 0:01:16]}  g6 {[%clk 0:01:50]} 24. g4 {[%clk 0:01:16]}  Nc4 {[%clk 0:01:42]} 25. e6 {[%clk 0:01:02]}  fxe6 {[%clk 0:01:41]} 26. Rxe6 {[%clk 0:01:02]}  Rxa3 {[%clk 0:01:36]} 27. Rxa3 {[%clk 0:01:01]}  Nxa3 {[%clk 0:01:25]} 28. Re7 {[%clk 0:00:59]}  c5 {[%clk 0:01:18]} 29. Ne6 {[%clk 0:00:48]}  Nxc2 {[%clk 0:01:16]} 30. Rg7+ {[%clk 0:00:44]}  Kh8 {[%clk 0:01:15]} 31. Rxb7 {[%clk 0:00:43]}  Ne3 {[%clk 0:01:05]} 32. h3 {[%clk 0:00:35]}  Nd5 {[%clk 0:01:01]} 33. f5 {[%clk 0:00:28]}  gxf5 {[%clk 0:01:01]} 34. gxf5 {[%clk 0:00:29]}  Rc8 {[%clk 0:00:59]} 35. Kf2 {[%clk 0:00:24]}  c4 {[%clk 0:00:59]} 36. Nd4 {[%clk 0:00:17]}  c3 {[%clk 0:00:59]} 37. Nc2 {[%clk 0:00:17]}  Rf8 {[%clk 0:00:55]} 38. Kf3 {[%clk 0:00:16]}  Rxf5+ {[%clk 0:00:54]} 39. Ke4 {[%clk 0:00:16]}  Rh5 {[%clk 0:00:52]} 40. Rb8+ {[%clk 0:00:13]}  Kg7 {[%clk 0:00:51]} 41. Rd8 {[%clk 0:00:13]}  Nf6+ {[%clk 0:00:50]} 42. Kd4 {[%clk 0:00:13]}  Rxh3 {[%clk 0:00:50]} 43. Rb8 {[%clk 0:00:07]}  h5 {[%clk 0:00:46]} 44. Rxb6 {[%clk 0:00:08]}  h4 {[%clk 0:00:47]} 45. Rc6 {[%clk 0:00:04]}  Rh2 {[%clk 0:00:42]} 46. Rxc3 {[%clk 0:00:04]}  Kg6 {[%clk 0:00:41]} 47. Ne3 {[%clk 0:00:04]}  Rd2+ {[%clk 0:00:36]} 48. Ke5 {[%clk 0:00:03]}  Rd8 {[%clk 0:00:33]} 49. Kf4 {[%clk 0:00:02]}  Rd4+ {[%clk 0:00:30]} 50. Kf3 {[%clk 0:00:02]}  Ra4 {[%clk 0:00:26]} 51. Rc4 {[%clk 0:00:00]}  Ra3 {[%clk 0:00:24]} 0-1


[Site "https://www.chess.com"]

[Event "Titled Tuesday Blitz May 9 Early 2023"]
[White "Garv Gaur"]
[Black "Fan_Of_Chucky"]
[WhiteFideId "45030839"]
[WhiteElo "2068"]
[BlackElo "2401"]
[Result "0-1"]
[Round "11"]
[TimeControl "180+2"]
[Date "2023.05.09"]
[WhiteClock "0:00:40"]
[BlackClock "0:00:33"]

1. e4 {[%clk 0:03:00]}  c5 {[%clk 0:02:44]} 2. Nf3 {[%clk 0:02:59]}  Nc6 {[%clk 0:02:43]} 3. d4 {[%clk 0:02:59]}  cxd4 {[%clk 0:02:44]} 4. Nxd4 {[%clk 0:02:59]}  Nf6 {[%clk 0:02:41]} 5. Nc3 {[%clk 0:02:59]}  d6 {[%clk 0:02:41]} 6. Be2 {[%clk 0:02:57]}  e5 {[%clk 0:02:37]} 7. Nb3 {[%clk 0:02:49]}  Be7 {[%clk 0:02:33]} 8. Be3 {[%clk 0:02:47]}  O-O {[%clk 0:02:33]} 9. g4 {[%clk 0:02:45]}  Be6 {[%clk 0:01:50]} 10. g5 {[%clk 0:02:30]}  Nd7 {[%clk 0:01:49]} 11. h4 {[%clk 0:02:29]}  a5 {[%clk 0:01:46]} 12. a4 {[%clk 0:02:26]}  Rc8 {[%clk 0:01:41]} 13. Qd2 {[%clk 0:02:18]}  Nb4 {[%clk 0:01:38]} 14. h5 {[%clk 0:02:09]}  Nb6 {[%clk 0:01:32]} 15. Nxa5 {[%clk 0:02:02]}  d5 {[%clk 0:01:30]} 16. Bxb6 {[%clk 0:01:49]}  Qxb6 {[%clk 0:01:29]} 17. exd5 {[%clk 0:01:49]}  Rxc3 {[%clk 0:01:20]} 18. bxc3 {[%clk 0:01:46]}  Nxd5 {[%clk 0:01:17]} 19. Nc4 {[%clk 0:01:45]}  Qc7 {[%clk 0:01:15]} 20. Bd3 {[%clk 0:01:28]}  Nf4 {[%clk 0:01:13]} 21. Ne3 {[%clk 0:01:18]}  Rd8 {[%clk 0:01:10]} 22. g6 {[%clk 0:01:14]}  e4 {[%clk 0:01:00]} 23. gxh7+ {[%clk 0:01:13]}  Kh8 {[%clk 0:00:57]} 24. h6 {[%clk 0:01:13]}  g6 {[%clk 0:00:51]} 25. c4 {[%clk 0:00:58]}  exd3 {[%clk 0:00:47]} 26. Qc3+ {[%clk 0:00:58]}  f6 {[%clk 0:00:44]} 27. O-O-O {[%clk 0:00:40]}  Ne2+ {[%clk 0:00:33]} 0-1


[Site "https://www.chess.com"]

[Event "Titled Tuesday Blitz May 9 Early 2023"]
[White "Kirillov, Dmitry"]
[Black "Brunner, Nicolas"]
[WhiteFideId "34180572"]
[BlackFideId "620246"]
[WhiteElo "2161"]
[BlackElo "2327"]
[Result "0-1"]
[Round "11"]
[TimeControl "180+2"]
[Date "2023.05.09"]
[WhiteClock "0:00:39"]
[BlackClock "0:00:05"]

1. d4 {[%clk 0:03:00]}  d5 {[%clk 0:02:59]} 2. c4 {[%clk 0:03:00]}  e6 {[%clk 0:03:00]} 3. Nc3 {[%clk 0:03:00]}  Be7 {[%clk 0:03:00]} 4. cxd5 {[%clk 0:03:00]}  exd5 {[%clk 0:03:00]} 5. Bf4 {[%clk 0:03:00]}  c6 {[%clk 0:03:00]} 6. e3 {[%clk 0:03:00]}  Bf5 {[%clk 0:03:00]} 7. Qb3 {[%clk 0:03:00]}  Qb6 {[%clk 0:02:59]} 8. Nf3 {[%clk 0:02:57]}  Qxb3 {[%clk 0:02:52]} 9. axb3 {[%clk 0:02:58]}  Nd7 {[%clk 0:02:52]} 10. h3 {[%clk 0:02:46]}  h6 {[%clk 0:02:52]} 11. Be2 {[%clk 0:02:45]}  Ngf6 {[%clk 0:02:51]} 12. Ne5 {[%clk 0:02:45]}  Nxe5 {[%clk 0:02:47]} 13. Bxe5 {[%clk 0:02:41]}  O-O {[%clk 0:02:46]} 14. Bxf6 {[%clk 0:02:37]}  Bxf6 {[%clk 0:02:46]} 15. Kd2 {[%clk 0:02:38]}  Be7 {[%clk 0:02:41]} 16. Ra2 {[%clk 0:02:32]}  a6 {[%clk 0:02:39]} 17. Bd3 {[%clk 0:02:22]}  Bxd3 {[%clk 0:02:32]} 18. Kxd3 {[%clk 0:02:23]}  Bd6 {[%clk 0:02:33]} 19. Raa1 {[%clk 0:02:11]}  Rae8 {[%clk 0:02:30]} 20. Rhe1 {[%clk 0:02:06]}  f5 {[%clk 0:02:27]} 21. f4 {[%clk 0:02:04]}  g5 {[%clk 0:02:26]} 22. g3 {[%clk 0:02:05]}  Kg7 {[%clk 0:02:26]} 23. Re2 {[%clk 0:02:03]}  Kf6 {[%clk 0:02:25]} 24. Rf1 {[%clk 0:02:03]}  gxf4 {[%clk 0:02:20]} 25. exf4 {[%clk 0:01:56]}  Rxe2 {[%clk 0:02:20]} 26. Nxe2 {[%clk 0:01:56]}  Re8 {[%clk 0:02:19]} 27. Ng1 {[%clk 0:01:54]}  Rg8 {[%clk 0:01:42]} 28. Ne2 {[%clk 0:01:52]}  h5 {[%clk 0:01:41]} 29. h4 {[%clk 0:01:52]}  a5 {[%clk 0:01:16]} 30. Rf3 {[%clk 0:01:51]}  Re8 {[%clk 0:01:14]} 31. Re3 {[%clk 0:01:50]}  Re4 {[%clk 0:01:14]} 32. Nc3 {[%clk 0:01:49]}  Rxe3+ {[%clk 0:01:04]} 33. Kxe3 {[%clk 0:01:49]}  Bb4 {[%clk 0:01:04]} 34. Ne2 {[%clk 0:01:41]}  Be1 {[%clk 0:01:02]} 35. Kf3 {[%clk 0:01:37]}  b6 {[%clk 0:01:00]} 36. Nc1 {[%clk 0:01:37]}  Bd2 {[%clk 0:00:30]} 37. Nd3 {[%clk 0:01:37]}  Bb4 {[%clk 0:00:18]} 38. Ke3 {[%clk 0:01:30]}  Bd6 {[%clk 0:00:18]} 39. Ne5 {[%clk 0:00:53]}  Bxe5 {[%clk 0:00:17]} 40. fxe5+ {[%clk 0:00:54]}  Ke6 {[%clk 0:00:16]} 41. Kd3 {[%clk 0:00:54]}  c5 {[%clk 0:00:14]} 42. Kc3 {[%clk 0:00:55]}  Kd7 {[%clk 0:00:12]} 43. Kd3 {[%clk 0:00:52]}  Ke7 {[%clk 0:00:12]} 44. Kc3 {[%clk 0:00:51]}  cxd4+ {[%clk 0:00:07]} 45. Kxd4 {[%clk 0:00:51]}  Ke6 {[%clk 0:00:07]} 46. b4 {[%clk 0:00:48]}  axb4 {[%clk 0:00:07]} 47. b3 {[%clk 0:00:48]}  b5 {[%clk 0:00:07]} 48. Kc5 {[%clk 0:00:46]}  Kxe5 {[%clk 0:00:07]} 49. Kxb5 {[%clk 0:00:46]}  Ke4 {[%clk 0:00:05]} 50. Kxb4 {[%clk 0:00:46]}  d4 {[%clk 0:00:05]} 51. Kc4 {[%clk 0:00:47]}  d3 {[%clk 0:00:05]} 52. b4 {[%clk 0:00:39]}  d2 {[%clk 0:00:05]} 53. b5 {[%clk 0:00:40]}  d1=Q {[%clk 0:00:05]} 54. b6 {[%clk 0:00:41]}  Qb1 {[%clk 0:00:05]} 55. Kc5 {[%clk 0:00:39]}  Kf3 {[%clk 0:00:05]} 0-1


[Site "https://www.chess.com"]

[Event "Titled Tuesday Blitz May 9 Early 2023"]
[White "Mohammed, Zozek Salah Mohammed"]
[Black "Moore, Nicholas"]
[WhiteFideId "4803361"]
[BlackFideId "4303709"]
[WhiteElo "2211"]
[BlackElo "2510"]
[Result "1-0"]
[Round "11"]
[TimeControl "180+2"]
[Date "2023.05.09"]
[WhiteClock "0:00:22"]
[BlackClock "0:00:03"]

1. d4 {[%clk 0:02:55]}  d5 {[%clk 0:02:59]} 2. Nf3 {[%clk 0:02:53]}  Nf6 {[%clk 0:02:59]} 3. g3 {[%clk 0:02:53]}  Bf5 {[%clk 0:02:58]} 4. Bg2 {[%clk 0:02:54]}  e6 {[%clk 0:02:58]} 5. O-O {[%clk 0:02:54]}  Be7 {[%clk 0:02:59]} 6. c4 {[%clk 0:02:55]}  O-O {[%clk 0:02:59]} 7. Nbd2 {[%clk 0:02:52]}  c6 {[%clk 0:02:59]} 8. b3 {[%clk 0:02:52]}  Nbd7 {[%clk 0:02:58]} 9. Bb2 {[%clk 0:02:52]}  h6 {[%clk 0:02:57]} 10. Re1 {[%clk 0:02:53]}  Re8 {[%clk 0:02:56]} 11. Ne5 {[%clk 0:02:49]}  Nxe5 {[%clk 0:02:53]} 12. dxe5 {[%clk 0:02:50]}  Nd7 {[%clk 0:02:54]} 13. e4 {[%clk 0:02:47]}  dxe4 {[%clk 0:02:48]} 14. Nxe4 {[%clk 0:02:48]}  Bxe4 {[%clk 0:02:47]} 15. Bxe4 {[%clk 0:02:49]}  Qc7 {[%clk 0:02:47]} 16. Qg4 {[%clk 0:02:14]}  Rad8 {[%clk 0:02:24]} 17. Rad1 {[%clk 0:02:13]}  Bb4 {[%clk 0:02:20]} 18. Re2 {[%clk 0:02:09]}  Nf8 {[%clk 0:02:20]} 19. Rd6 {[%clk 0:02:00]}  g6 {[%clk 0:02:03]} 20. Rxd8 {[%clk 0:01:38]}  Rxd8 {[%clk 0:01:57]} 21. a3 {[%clk 0:01:39]}  Be7 {[%clk 0:01:56]} 22. h4 {[%clk 0:01:37]}  h5 {[%clk 0:01:55]} 23. Qf3 {[%clk 0:01:35]}  Rd1+ {[%clk 0:01:54]} 24. Kg2 {[%clk 0:01:34]}  Qd8 {[%clk 0:01:54]} 25. Bc2 {[%clk 0:01:29]}  Rd2 {[%clk 0:01:53]} 26. Qe3 {[%clk 0:01:25]}  Rxe2 {[%clk 0:01:53]} 27. Qxe2 {[%clk 0:01:26]}  a5 {[%clk 0:01:39]} 28. Qd3 {[%clk 0:01:08]}  Qxd3 {[%clk 0:01:36]} 29. Bxd3 {[%clk 0:01:09]}  Nd7 {[%clk 0:01:36]} 30. f4 {[%clk 0:01:07]}  Bc5 {[%clk 0:01:28]} 31. Kf3 {[%clk 0:01:04]}  Kf8 {[%clk 0:01:28]} 32. g4 {[%clk 0:01:02]}  hxg4+ {[%clk 0:01:28]} 33. Kxg4 {[%clk 0:01:03]}  Ke7 {[%clk 0:01:29]} 34. Kg5 {[%clk 0:00:54]}  Be3 {[%clk 0:01:10]} 35. Bc3 {[%clk 0:00:51]}  b6 {[%clk 0:01:06]} 36. b4 {[%clk 0:00:49]}  axb4 {[%clk 0:01:04]} 37. axb4 {[%clk 0:00:50]}  c5 {[%clk 0:01:01]} 38. b5 {[%clk 0:00:48]}  Kf8 {[%clk 0:00:57]} 39. Kg4 {[%clk 0:00:41]}  Ke7 {[%clk 0:00:57]} 40. Kf3 {[%clk 0:00:41]}  Bg1 {[%clk 0:00:55]} 41. Bd2 {[%clk 0:00:35]}  Bd4 {[%clk 0:00:53]} 42. Be4 {[%clk 0:00:35]}  Nf8 {[%clk 0:00:50]} 43. Bc6 {[%clk 0:00:33]}  f6 {[%clk 0:00:50]} 44. Ke4 {[%clk 0:00:29]}  f5+ {[%clk 0:00:47]} 45. Kf3 {[%clk 0:00:28]}  Nd7 {[%clk 0:00:41]} 46. Kg3 {[%clk 0:00:27]}  Nb8 {[%clk 0:00:38]} 47. Bf3 {[%clk 0:00:26]}  Nd7 {[%clk 0:00:38]} 48. Kg2 {[%clk 0:00:24]}  Nf8 {[%clk 0:00:38]} 49. Be1 {[%clk 0:00:23]}  Nd7 {[%clk 0:00:38]} 50. h5 {[%clk 0:00:23]}  gxh5 {[%clk 0:00:38]} 51. Bh4+ {[%clk 0:00:23]}  Kf8 {[%clk 0:00:37]} 52. Bxh5 {[%clk 0:00:24]}  Be3 {[%clk 0:00:36]} 53. Kf3 {[%clk 0:00:24]}  Bc1 {[%clk 0:00:36]} 54. Bd8 {[%clk 0:00:23]}  Bd2 {[%clk 0:00:26]} 55. Bg6 {[%clk 0:00:22]}  Bc1 {[%clk 0:00:26]} 56. Bh5 {[%clk 0:00:22]}  Bd2 {[%clk 0:00:27]} 57. Bc7 {[%clk 0:00:21]}  Ke7 {[%clk 0:00:23]} 58. Bd6+ {[%clk 0:00:22]}  Kd8 {[%clk 0:00:03]} 59. Bf7 {[%clk 0:00:22]} 1-0


[Site "https://www.chess.com"]